[Event "HangZhou GM Tournament 2022"]
[Site "HangZhou"]
[Date "2022.03.31"]
[Round "7.2"]
[White "Xu, Xiangyu"]
[Black "Bai, Jinshi"]
[Result "1/2-1/2"]
[ECO "D36"]
[WhiteElo "2564"]
[BlackElo "2593"]
[Annotator "ChessBase"]
[PlyCount "98"]
[EventDate "2022.03.28"]
[EventType "tourn"]
[EventCountry "CHN"]
[SourceTitle "playchess.com"]
[Source "ChessBase"]
[SourceQuality "1"]
[TimeControl "5400+30"]

1. d4 {[%emt 0:00:04]} d5 {[%emt 0:00:12]} 2. c4 {[%emt 0:00:07]} e6 {[%emt 0:00:37]} 3. Nc3 {[%emt 0:00:13]} Nf6 {[%emt 0:01:11]} 4. cxd5 {[%emt 0:03:28]} exd5 {[%emt 0:00:13]} 5. Bg5 {[%emt 0:00:13]} c6 {[%emt 0:00:35]} 6. Qc2 {[%emt 0:02:12]} h6 {[%emt 0:02:41]} 7. Bh4 {[%emt 0:00:14]} g6 {[%emt 0:02:12]} 8. e3 {[%emt 0:04:02]} Bf5 {[%emt 0:00:53]} 9. Qb3 {[%emt 0:04:38]} g5 {[%emt 0:01:21]} 10. Bg3 {[%emt 0:02:22]} Qb6 {[%emt 0:00:24]} 11. h4 {[%emt 0:03:00]} Rg8 {[%emt 0:09:00]} 12. hxg5 {[%emt 0:06:12]} hxg5 {[%emt 0:00:08]} 13. Kd2 {[%emt 0:01:49]} Bb4 {[%emt 0:19:53]} 14. f3 {[%emt 0:06:07]} Nbd7 {[%emt 0:03:36]} 15. a3 {[%emt 0:04:25]} Be7 {[%emt 0:02:49]} 16. Qxb6 {[%emt 0:00:14]} axb6 {[%emt 0:05:17]} 17. Bd3 {[%emt 0:04:30]} Bxd3 {[%emt 0:03:32]} 18. Kxd3 {[%emt 0:00:08]} b5 {[%emt 0:00:18]} 19. Nge2 {[%emt 0:02:15]} Nb6 {[%emt 0:02:57]} 20. e4 {[%emt 0:02:22]} Kd7 {[%emt 0:11:37]} 21. Be5 {[%emt 0:08:05]} dxe4+ {[%emt 0:02:49]} 22. fxe4 {[%emt 0:00:17]} Ng4 {[%emt 0:00:28]} 23. Bg3 {[%emt 0:00:30]} Rh8 {[%emt 0:04:15]} 24. Rxh8 {[%emt 0:04:51]} Rxh8 {[%emt 0:00:05]} 25. b3 {[%emt 0:00:11]} Ra8 {[%emt 0:02:29]} 26. a4 {[%emt 0:00:32]} f6 {[%emt 0:03:33]} 27. Rb1 {[%emt 0:01:39]} bxa4 {[%emt 0:04:39]} 28. bxa4 {[%emt 0:00:13]} Bd8 {[%emt 0:00:17]} 29. Ra1 {[%emt 0:03:19]} Be7 {[%emt 0:04:05]} 30. Rb1 {[%emt 0:02:12]} Bd8 {[%emt 0:00:15]} 31. Ra1 {[%emt 0:04:00]} Be7 {[%emt 0:02:44]} 32. Nc1 {[%emt 0:01:13]} c5 {[%emt 0:04:40]} 33. dxc5 {[%emt 0:02:30]} Bxc5 {[%emt 0:00:09]} 34. Nb3 {[%emt 0:00:20]} Bd6 {[%emt 0:00:30]} 35. Bxd6 {[%emt 0:00:29]} Kxd6 {[%emt 0:00:04]} 36. Nb5+ {[%emt 0:04:45]} Ke7 {[%emt 0:00:26]} 37. Nc5 {[%emt 0:00:35]} Ne5+ {[%emt 0:01:53]} 38. Kd4 {[%emt 0:01:46]} Nc6+ {[%emt 0:03:33]} 39. Kd3 {[%emt 0:00:49]} Ra5 {[%emt 0:01:22]} 40. Nxb7 {[%emt 0:00:30]} Rxa4 {[%emt 0:00:07]} 41. Rxa4 {[%emt 0:00:07]} Nxa4 {[%emt 0:00:05]} 42. N7d6 {[%emt 0:00:56]} Ke6 {[%emt 0:00:55]} 43. Ke3 {[%emt 0:00:37]} Nb6 {[%emt 0:01:12]} 44. Nf5 {[%emt 0:01:00]} Nc4+ {[%emt 0:00:16]} 45. Kd3 {[%emt 0:00:31]} N4e5+ {[%emt 0:00:20]} 46. Ke3 {[%emt 0:00:44]} Ng4+ {[%emt 0:00:06]} 47. Kf3 {[%emt 0:00:12]} Nge5+ {[%emt 0:00:40]} 48. Ke3 {[%emt 0:00:06]} Ng4+ {[%emt 0:00:08]} 49. Kf3 {[%emt 0:00:05]} Nge5+ {[%emt 0:00:53]} 1/2-1/2

[Event "HangZhou GM Tournament 2022"]
[Site "HangZhou"]
[Date "2022.04.01"]
[Round "9.1"]
[White "Xu, Xiangyu"]
[Black "Li, Di"]
[Result "1/2-1/2"]
[ECO "D44"]
[WhiteElo "2564"]
[BlackElo "2579"]
[Annotator "RC"]
[PlyCount "102"]
[EventDate "2022.03.28"]
[EventType "tourn"]
[EventCountry "CHN"]
[SourceTitle "playchess.com"]
[Source "ChessBase"]
[SourceQuality "1"]
[TimeControl "5400+30"]

1. d4 {[%emt 0:00:04]} Nf6 {[%emt 0:00:12]} 2. c4 {[%emt 0:00:07]} e6 {[%emt 0:00:15]} 3. Nf3 {[%emt 0:00:09]} d5 {[%emt 0:00:34]} 4. Nc3 {[%emt 0:00:10]} c6 {[%emt 0:02:17]} 5. Bg5 {[%emt 0:00:16]} dxc4 {[%emt 0:08:31]} 6. e4 {[%emt 0:05:07]} b5 {[%emt 0:00:24]} 7. e5 {[%emt 0:00:06]} h6 {[%emt 0:00:08]} 8. Bh4 {[%emt 0:00:05]} g5 {[%emt 0:00:16]} 9. Nxg5 {[%emt 0:00:05]} hxg5 {[%emt 0:00:08]} 10. Bxg5 {[%emt 0:00:06]} Nbd7 {[%emt 0:00:17]} 11. g3 {[%emt 0:00:14]} Bb7 {[%emt 0:00:16]} 12. Bg2 {[%emt 0:00:07]} Qb6 {[%emt 0:00:18]} 13. exf6 {[%emt 0:00:10]} O-O-O {[%emt 0:00:20]} 14. O-O {[%emt 0:00:07]} c5 {[%emt 0:00:28]} 15. d5 {[%emt 0:00:09]} b4 {[%emt 0:00:28]} 16. Na4 {[%emt 0:11:20]} Qb5 {[%emt 0:00:33]} 17. a3 {[%emt 0:00:52]} Nb8 {[%emt 0:03:14]} 18. axb4 {[%emt 0:00:13]} cxb4 {[%emt 0:00:12]} 19. Be3 {[%emt 0:02:22]} Bxd5 {[%emt 0:12:30]} 20. Bxd5 {[%emt 0:01:14]} Rxd5 {[%emt 0:00:16]} 21. Qe2 {[%emt 0:00:21]} Nc6 {[%emt 0:01:06]} 22. Rfc1 {[%emt 0:00:30]} Ne5 {[%emt 0:08:51]} 23. f4 {[%emt 0:10:25]} Nd3 {[%emt 0:02:16]} 24. Rxc4+ {[%emt 0:00:18]} Qxc4 {[%emt 0:00:26]} 25. Rc1 {[%emt 0:00:11]} Qxc1+ {[%emt 0:00:29]} 26. Bxc1 {[%emt 0:00:10]} Nxc1 {[%emt 0:00:05]} 27. Qc4+ {[%emt 0:00:18]} Kd7 {[%emt 0:07:30]} 28. Qxc1 {[%emt 0:00:11]} Bd6 {[%emt 0:00:10]} 29. Qe3 {[%emt 0:07:25]} Ra5 {[%emt 0:01:28]} 30. Qd3 {[%emt 0:04:07]} Rh6 {[%emt 0:04:12]} 31. b3 {[%emt 0:01:17]} Rxf6 {[%emt 0:00:37]} 32. Nb2 {[%emt 0:02:18]} Rff5 {[%emt 0:01:28]} 33. Nc4 {[%emt 0:01:04]} Rfd5 {[%emt 0:01:57]} 34. Qc2 {[%emt 0:02:24]} Ra1+ {[%emt 0:01:53]} 35. Kg2 {[%emt 0:00:12]} Ke7 {[%emt 0:02:44]} 36. Qh7 {[%emt 0:03:13]} Ra3 {[%emt 0:41:41]} 37. Qh4+ {[%emt 0:10:05]} Ke8 {[%emt 0:00:00]} 38. Qh8+ {[%emt 0:01:13]} Ke7 {[%emt 0:00:00]} 39. Qh4+ {[%emt 0:01:39]} Ke8 {[%emt 0:00:00]} 40. f5 {[%emt 0:02:01]} Rxb3 {[%emt 0:00:00]} 41. Qh8+ {[%emt 0:00:47]} Kd7 {[%emt 0:00:00]} 42. Qf6 {[%emt 0:00:21]} Kc6 {[%emt 0:00:00]} 43. Qxf7 {[%emt 0:01:15]} exf5 {[%emt 0:00:00]} 44. Na5+ {[%emt 0:03:18]} Rxa5 {[%emt 0:00:00]} 45. Qxb3 {[%emt 0:00:09]} Rc5 {[%emt 0:00:00]} 46. Qa4+ {[%emt 0:09:14]} Rb5 {[%emt 0:00:00]} 47. Qa6+ {[%emt 0:00:42]} Rb6 {[%emt 0:00:00]} 48. Qc4+ {[%emt 0:00:29]} Kb7 {[%emt 0:00:00]} 49. Qf7+ {[%emt 0:02:29]} Kc6 {[%emt 0:00:00]} 50. Qc4+ {[%emt 0:00:14]} Kb7 {[%emt 0:00:00]} 51. Qf7+ {[%emt 0:00:08]} Kc6 {[%emt 0:00:00]} 1/2-1/2

[Event "HangZhou GM Tournament 2022"]
[Site "HangZhou"]
[Date "2022.04.02"]
[Round "10.2"]
[White "Bai, Jinshi"]
[Black "Xu, Xiangyu"]
[Result "1/2-1/2"]
[ECO "D27"]
[WhiteElo "2593"]
[BlackElo "2564"]
[Annotator "RC"]
[PlyCount "119"]
[EventDate "2022.03.28"]
[EventType "tourn"]
[EventCountry "CHN"]
[SourceTitle "playchess.com"]
[Source "ChessBase"]
[SourceQuality "1"]
[TimeControl "5400+30"]

1. d4 {[%emt 0:00:05]} d5 {[%emt 0:00:07]} 2. Nf3 {[%emt 0:00:21]} Nf6 {[%emt 0:01:57]} 3. c4 {[%emt 0:00:19]} dxc4 {[%emt 0:00:10]} 4. e3 {[%emt 0:00:15]} e6 {[%emt 0:00:08]} 5. Bxc4 {[%emt 0:00:09]} c5 {[%emt 0:00:07]} 6. O-O {[%emt 0:00:38]} a6 {[%emt 0:04:06]} 7. Nc3 {[%emt 0:00:21]} Nc6 {[%emt 0:03:32]} 8. d5 {[%emt 0:02:11]} Na5 {[%emt 0:05:40]} 9. b3 {[%emt 0:00:25]} b5 {[%emt 0:00:24]} 10. Bd3 {[%emt 0:00:25]} Nxd5 {[%emt 0:04:32]} 11. Nxd5 {[%emt 0:00:18]} exd5 {[%emt 0:00:11]} 12. Bb2 {[%emt 0:00:32]} Bg4 {[%emt 0:07:01]} 13. h3 {[%emt 0:05:27]} Be6 {[%emt 0:00:29]} 14. Qc2 {[%emt 0:06:14]} Rc8 {[%emt 0:16:08]} 15. Rfd1 {[%emt 0:11:44]} c4 {[%emt 0:06:58]} 16. bxc4 {[%emt 0:02:15]} Nxc4 {[%emt 0:04:07]} 17. Bxc4 {[%emt 0:07:44]} Rxc4 {[%emt 0:00:20]} 18. Qd3 {[%emt 0:05:21]} f6 {[%emt 0:05:58]} 19. a4 {[%emt 0:09:46]} Bc5 {[%emt 0:05:07]} 20. axb5 {[%emt 0:04:55]} axb5 {[%emt 0:00:08]} 21. Nd2 {[%emt 0:03:33]} Qc8 {[%emt 0:00:27]} 22. Nxc4 {[%emt 0:01:23]} dxc4 {[%emt 0:00:10]} 23. Qe4 {[%emt 0:03:47]} O-O {[%emt 0:00:27]} 24. Bd4 {[%emt 0:00:09]} Bxd4 {[%emt 0:03:35]} 25. Rxd4 {[%emt 0:13:25]} b4 {[%emt 0:02:33]} 26. Rd6 {[%emt 0:02:13]} Bf7 {[%emt 0:01:49]} 27. Rc6 {[%emt 0:00:24]} Qb8 {[%emt 0:03:32]} 28. Rxc4 {[%emt 0:02:32]} Bxc4 {[%emt 0:00:09]} 29. Qxc4+ {[%emt 0:00:03]} Kh8 {[%emt 0:00:10]} 30. Rb1 {[%emt 0:00:15]} Rd8 {[%emt 0:01:11]} 31. Qxb4 {[%emt 0:04:47]} Qxb4 {[%emt 0:03:37]} 32. Rxb4 {[%emt 0:00:04]} h5 {[%emt 0:01:19]} 33. Rb5 {[%emt 0:03:14]} g6 {[%emt 0:00:12]} 34. Rb7 {[%emt 0:00:08]} Rd1+ {[%emt 0:01:13]} 35. Kh2 {[%emt 0:01:10]} h4 {[%emt 0:00:07]} 36. Rf7 {[%emt 0:03:52]} Rd6 {[%emt 0:02:00]} 37. g3 {[%emt 0:00:19]} hxg3+ {[%emt 0:00:21]} 38. Kxg3 {[%emt 0:00:03]} Kg8 {[%emt 0:00:08]} 39. Ra7 {[%emt 0:00:03]} Rd1 {[%emt 0:00:25]} 40. e4 {[%emt 0:00:59]} Rg1+ {[%emt 0:02:03]} 41. Kh2 {[%emt 0:00:26]} Re1 {[%emt 0:00:09]} 42. f3 {[%emt 0:00:06]} Kf8 {[%emt 0:00:55]} 43. h4 {[%emt 0:00:41]} Kg8 {[%emt 0:01:21]} 44. Ra2 {[%emt 0:01:24]} Kf7 {[%emt 0:00:41]} 45. Kg3 {[%emt 0:00:05]} Rg1+ {[%emt 0:00:49]} 46. Rg2 {[%emt 0:00:07]} Rh1 {[%emt 0:00:51]} 47. Rh2 {[%emt 0:00:07]} Rg1+ {[%emt 0:01:16]} 48. Kf4 {[%emt 0:00:04]} Ra1 {[%emt 0:01:02]} 49. Rb2 {[%emt 0:00:47]} Rh1 {[%emt 0:00:23]} 50. Rb7+ {[%emt 0:00:17]} Kg8 {[%emt 0:00:56]} 51. e5 {[%emt 0:00:36]} Rxh4+ {[%emt 0:04:54]} 52. Kg3 {[%emt 0:00:07]} Rh5 {[%emt 0:00:31]} 53. exf6 {[%emt 0:00:54]} Rg5+ {[%emt 0:00:07]} 54. Kh4 {[%emt 0:00:37]} Rf5 {[%emt 0:00:08]} 55. Rg7+ {[%emt 0:00:13]} Kf8 {[%emt 0:00:07]} 56. Rxg6 {[%emt 0:00:04]} Rxf3 {[%emt 0:00:57]} 57. Rg3 {[%emt 0:00:12]} Rxg3 {[%emt 0:00:06]} 58. Kxg3 {[%emt 0:00:02]} Kf7 {[%emt 0:00:05]} 59. Kf4 {[%emt 0:00:02]} Kxf6 {[%emt 0:00:40]} 60. Ke4 {[%emt 0:11:51]} 1/2-1/2

[Event "HangZhou GM Tournament 2022"]
[Site "HangZhou"]
[Date "2022.04.03"]
[Round "12.1"]
[White "Bai, Jinshi"]
[Black "Li, Di"]
[Result "1/2-1/2"]
[ECO "E06"]
[WhiteElo "2593"]
[BlackElo "2579"]
[Annotator "ChessBase"]
[PlyCount "59"]
[EventDate "2022.03.28"]
[EventType "tourn"]
[EventCountry "CHN"]
[SourceTitle "playchess.com"]
[Source "ChessBase"]
[SourceQuality "1"]
[TimeControl "5400+30"]

1. d4 {[%emt 0:00:05]} Nf6 {[%emt 0:00:06]} 2. c4 {[%emt 0:00:35]} e6 {[%emt 0:00:07]} 3. g3 {[%emt 0:00:40]} d5 {[%emt 0:00:28]} 4. Bg2 {[%emt 0:00:08]} Be7 {[%emt 0:00:06]} 5. Nf3 {[%emt 0:02:04]} O-O {[%emt 0:00:12]} 6. Qc2 {[%emt 0:03:03]} c5 {[%emt 0:01:21]} 7. dxc5 {[%emt 0:01:21]} Nc6 {[%emt 0:04:12]} 8. cxd5 {[%emt 0:02:09]} Qxd5 {[%emt 0:01:28]} 9. O-O {[%emt 0:02:13]} Qxc5 {[%emt 0:00:39]} 10. Nc3 {[%emt 0:14:29]} Qh5 {[%emt 0:06:47]} 11. Rd1 {[%emt 0:24:19]} e5 {[%emt 0:10:24]} 12. Bg5 {[%emt 0:01:21]} Be6 {[%emt 0:00:26]} 13. Bxf6 {[%emt 0:12:42]} Bxf6 {[%emt 0:00:33]} 14. Ne4 {[%emt 0:00:12]} Be7 {[%emt 0:00:29]} 15. Nc5 {[%emt 0:05:47]} Bf5 {[%emt 0:02:10]} 16. Qc4 {[%emt 0:00:22]} Rac8 {[%emt 0:03:14]} 17. Nxb7 {[%emt 0:01:50]} Nd4 {[%emt 0:11:18]} 18. Qd5 {[%emt 0:03:03]} Nxe2+ {[%emt 0:01:14]} 19. Kh1 {[%emt 0:01:01]} e4 {[%emt 0:01:04]} 20. Ne5 {[%emt 0:09:20]} Rc2 {[%emt 0:07:04]} 21. Nc6 {[%emt 0:03:11]} Bf6 {[%emt 0:09:11]} 22. Nd6 {[%emt 0:00:14]} Nxg3+ {[%emt 0:16:46]} 23. fxg3 {[%emt 0:00:05]} Rxg2 {[%emt 0:00:31]} 24. Kxg2 {[%emt 0:00:09]} Qf3+ {[%emt 0:00:49]} 25. Kg1 {[%emt 0:00:04]} Qe3+ {[%emt 0:00:07]} 26. Kg2 {[%emt 0:00:52]} Qe2+ {[%emt 0:00:22]} 27. Kg1 {[%emt 0:00:14]} Qe3+ {[%emt 0:00:06]} 28. Kg2 {[%emt 0:00:04]} Qf3+ {[%emt 0:00:07]} 29. Kg1 {[%emt 0:00:05]} Qe3+ {[%emt 0:00:05]} 30. Kg2 {[%emt 0:00:09]} 1/2-1/2